[Event "Titled Tuesday Blitz March 21 Early 2023"]
[White "Nguyen, Ngoc Truong Son"]
[Black "Sattarov, Bobir"]
[WhiteFideId "12401110"]
[BlackFideId "14203081"]
[WhiteElo "2571"]
[BlackElo "2351"]
[Result "1-0"]
[Round "04"]
[TimeControl "180+2"]
[Date "2023.03.21"]
[WhiteClock "0:00:04"]
[BlackClock "0:00:01"]

1. d4 {[%clk 0:03:00]}  Nf6 {[%clk 0:02:59]} 2. c4 {[%clk 0:03:01]}  e6 {[%clk 0:03:00]} 3. Nc3 {[%clk 0:03:02]}  Bb4 {[%clk 0:02:59]} 4. f3 {[%clk 0:03:02]}  d5 {[%clk 0:02:36]} 5. a3 {[%clk 0:03:02]}  Be7 {[%clk 0:02:36]} 6. e4 {[%clk 0:03:01]}  dxe4 {[%clk 0:02:37]} 7. fxe4 {[%clk 0:03:02]}  c5 {[%clk 0:02:36]} 8. d5 {[%clk 0:03:02]}  exd5 {[%clk 0:02:35]} 9. exd5 {[%clk 0:03:03]}  O-O {[%clk 0:02:33]} 10. Nf3 {[%clk 0:02:59]}  a6 {[%clk 0:02:27]} 11. Be2 {[%clk 0:02:52]}  Bd6 {[%clk 0:02:03]} 12. O-O {[%clk 0:02:51]}  h6 {[%clk 0:01:56]} 13. Kh1 {[%clk 0:02:23]}  Bf5 {[%clk 0:01:52]} 14. Be3 {[%clk 0:02:10]}  Nbd7 {[%clk 0:01:48]} 15. Qd2 {[%clk 0:02:10]}  Qc7 {[%clk 0:01:36]} 16. Nh4 {[%clk 0:01:38]}  Bh7 {[%clk 0:01:31]} 17. Bxh6 {[%clk 0:01:30]}  gxh6 {[%clk 0:01:22]} 18. Qxh6 {[%clk 0:01:31]}  Rfe8 {[%clk 0:01:01]} 19. Nf5 {[%clk 0:00:29]}  Bf8 {[%clk 0:00:57]} 20. Qg5+ {[%clk 0:00:29]}  Bg6 {[%clk 0:00:50]} 21. Bd3 {[%clk 0:00:27]}  Nh7 {[%clk 0:00:46]} 22. Qh4 {[%clk 0:00:19]}  Ne5 {[%clk 0:00:43]} 23. Bc2 {[%clk 0:00:19]}  Qd8 {[%clk 0:00:41]} 24. Qh3 {[%clk 0:00:16]}  Nxc4 {[%clk 0:00:27]} 25. Ne4 {[%clk 0:00:12]}  Rxe4 {[%clk 0:00:21]} 26. Bxe4 {[%clk 0:00:13]}  Ng5 {[%clk 0:00:22]} 27. Qg4 {[%clk 0:00:11]}  Nxe4 {[%clk 0:00:21]} 28. Qxe4 {[%clk 0:00:08]}  Nd2 {[%clk 0:00:20]} 29. Qe5 {[%clk 0:00:08]}  Nxf1 {[%clk 0:00:19]} 30. Rxf1 {[%clk 0:00:09]}  Qe8 {[%clk 0:00:14]} 31. Qf6 {[%clk 0:00:07]}  Qe4 {[%clk 0:00:13]} 32. Ng3 {[%clk 0:00:05]}  Qd4 {[%clk 0:00:12]} 33. Qf3 {[%clk 0:00:05]}  Rd8 {[%clk 0:00:11]} 34. h3 {[%clk 0:00:04]}  Qxd5 {[%clk 0:00:11]} 35. Qf2 {[%clk 0:00:04]}  Bg7 {[%clk 0:00:10]} 36. b4 {[%clk 0:00:03]}  Bd4 {[%clk 0:00:10]} 37. Qe2 {[%clk 0:00:03]}  c4 {[%clk 0:00:09]} 38. Qg4 {[%clk 0:00:03]}  c3 {[%clk 0:00:09]} 39. Nf5 {[%clk 0:00:04]}  Qe5 {[%clk 0:00:04]} 40. Nh6+ {[%clk 0:00:04]}  Kh7 {[%clk 0:00:03]} 41. Nxf7 {[%clk 0:00:04]}  Qg7 {[%clk 0:00:01]} 42. Ng5+ {[%clk 0:00:04]}  Kh8 {[%clk 0:00:02]} 43. Ne6 {[%clk 0:00:04]}  Qh7 {[%clk 0:00:01]} 44. Nxd4 {[%clk 0:00:04]} 1-0


[Site "https://www.chess.com"]

[Event "Titled Tuesday Blitz March 21 Early 2023"]
[White "Samunenkov, Ihor"]
[Black "Kramnik, Vladimir"]
[WhiteFideId "14187086"]
[BlackFideId "4101588"]
[WhiteElo "2457"]
[BlackElo "2712"]
[Result "0-1"]
[Round "04"]
[TimeControl "180+2"]
[Date "2023.03.21"]
[WhiteClock "0:00:02"]
[BlackClock "0:00:04"]

1. d4 {[%clk 0:03:00]}  Nf6 {[%clk 0:02:58]} 2. Nf3 {[%clk 0:02:57]}  e6 {[%clk 0:02:57]} 3. c4 {[%clk 0:02:56]}  Bb4+ {[%clk 0:02:57]} 4. Bd2 {[%clk 0:02:56]}  Bxd2+ {[%clk 0:02:56]} 5. Qxd2 {[%clk 0:02:56]}  O-O {[%clk 0:02:57]} 6. Nc3 {[%clk 0:02:56]}  d5 {[%clk 0:02:56]} 7. e3 {[%clk 0:02:54]}  Qe7 {[%clk 0:02:57]} 8. Rd1 {[%clk 0:02:26]}  Rd8 {[%clk 0:02:56]} 9. Qc2 {[%clk 0:02:23]}  b6 {[%clk 0:02:55]} 10. cxd5 {[%clk 0:02:10]}  exd5 {[%clk 0:02:53]} 11. Be2 {[%clk 0:02:09]}  c5 {[%clk 0:02:52]} 12. O-O {[%clk 0:02:09]}  Bb7 {[%clk 0:02:37]} 13. Ne5 {[%clk 0:02:01]}  Nc6 {[%clk 0:02:31]} 14. f4 {[%clk 0:01:38]}  Rac8 {[%clk 0:02:30]} 15. Bf3 {[%clk 0:01:36]}  cxd4 {[%clk 0:02:20]} 16. exd4 {[%clk 0:01:35]}  Na5 {[%clk 0:02:16]} 17. Rfe1 {[%clk 0:01:30]}  Ne4 {[%clk 0:02:13]} 18. Qd3 {[%clk 0:01:07]}  f5 {[%clk 0:02:05]} 19. Rc1 {[%clk 0:00:58]}  Qb4 {[%clk 0:01:58]} 20. Re2 {[%clk 0:00:51]}  Nc4 {[%clk 0:01:54]} 21. Nxc4 {[%clk 0:00:36]}  Rxc4 {[%clk 0:01:48]} 22. Rd1 {[%clk 0:00:21]}  Ba6 {[%clk 0:01:34]} 23. Qe3 {[%clk 0:00:15]}  Rcc8 {[%clk 0:01:26]} 24. Rc2 {[%clk 0:00:14]}  Bb7 {[%clk 0:01:25]} 25. Rdc1 {[%clk 0:00:13]}  Qf8 {[%clk 0:01:23]} 26. Qd3 {[%clk 0:00:11]}  h6 {[%clk 0:01:05]} 27. Ne2 {[%clk 0:00:09]}  Kh7 {[%clk 0:01:04]} 28. Rxc8 {[%clk 0:00:08]}  Rxc8 {[%clk 0:01:03]} 29. Rxc8 {[%clk 0:00:08]}  Qxc8 {[%clk 0:01:03]} 30. Nc3 {[%clk 0:00:09]}  Qe6 {[%clk 0:00:56]} 31. Qe3 {[%clk 0:00:09]}  Qd6 {[%clk 0:00:54]} 32. a3 {[%clk 0:00:07]}  Bc6 {[%clk 0:00:53]} 33. g3 {[%clk 0:00:04]}  Qf6 {[%clk 0:00:52]} 34. Kg2 {[%clk 0:00:04]}  g5 {[%clk 0:00:51]} 35. Bxe4 {[%clk 0:00:03]}  fxe4 {[%clk 0:00:47]} 36. fxg5 {[%clk 0:00:03]}  hxg5 {[%clk 0:00:46]} 37. Qf2 {[%clk 0:00:04]}  Qe6 {[%clk 0:00:42]} 38. Nd1 {[%clk 0:00:04]}  Kg7 {[%clk 0:00:40]} 39. Ne3 {[%clk 0:00:04]}  Bd7 {[%clk 0:00:33]} 40. g4 {[%clk 0:00:05]}  Qd6 {[%clk 0:00:31]} 41. Nf5+ {[%clk 0:00:05]}  Bxf5 {[%clk 0:00:30]} 42. Qxf5 {[%clk 0:00:06]}  Qd8 {[%clk 0:00:20]} 43. Qe5+ {[%clk 0:00:05]}  Qf6 {[%clk 0:00:12]} 44. Qxf6+ {[%clk 0:00:02]}  Kxf6 {[%clk 0:00:12]} 45. Kf2 {[%clk 0:00:03]}  Ke6 {[%clk 0:00:12]} 46. Ke3 {[%clk 0:00:03]}  Kd6 {[%clk 0:00:12]} 47. Ke2 {[%clk 0:00:03]}  Kc6 {[%clk 0:00:08]} 48. Ke3 {[%clk 0:00:04]}  Kb5 {[%clk 0:00:06]} 49. Kf2 {[%clk 0:00:03]}  Kc4 {[%clk 0:00:05]} 50. h4 {[%clk 0:00:03]}  gxh4 {[%clk 0:00:04]} 51. g5 {[%clk 0:00:04]}  h3 {[%clk 0:00:04]} 52. g6 {[%clk 0:00:03]}  e3+ {[%clk 0:00:04]} 53. Kxe3 {[%clk 0:00:03]}  h2 {[%clk 0:00:04]} 54. g7 {[%clk 0:00:04]}  h1=Q {[%clk 0:00:04]} 55. g8=Q {[%clk 0:00:05]}  Qe1+ {[%clk 0:00:04]} 56. Kf3 {[%clk 0:00:04]}  Qd1+ {[%clk 0:00:04]} 57. Kg2 {[%clk 0:00:04]}  Qd2+ {[%clk 0:00:02]} 58. Kg3 {[%clk 0:00:03]}  Qxd4 {[%clk 0:00:03]} 59. Qc8+ {[%clk 0:00:03]}  Kb3 {[%clk 0:00:03]} 60. Qd7 {[%clk 0:00:01]}  Qe3+ {[%clk 0:00:03]} 61. Kg2 {[%clk 0:00:02]}  Qe4+ {[%clk 0:00:03]} 62. Kg3 {[%clk 0:00:02]}  Kxb2 {[%clk 0:00:03]} 63. Qb5+ {[%clk 0:00:01]}  Kxa3 {[%clk 0:00:04]} 64. Qa6+ {[%clk 0:00:02]}  Kb3 {[%clk 0:00:04]} 65. Qb5+ {[%clk 0:00:02]}  Qb4 {[%clk 0:00:04]} 66. Qxd5+ {[%clk 0:00:02]}  Qc4 {[%clk 0:00:04]} 67. Qd1+ {[%clk 0:00:03]}  Kb4 {[%clk 0:00:04]} 68. Qb1+ {[%clk 0:00:02]}  Qb3+ {[%clk 0:00:04]} 0-1


[Site "https://www.chess.com"]

[Event "Titled Tuesday Blitz March 21 Early 2023"]
[White "Kamsky, Gata"]
[Black "Idani, Pouya"]
[WhiteFideId "2000024"]
[BlackFideId "12510130"]
[WhiteElo "2666"]
[BlackElo "2574"]
[Result "1/2-1/2"]
[Round "04"]
[TimeControl "180+2"]
[Date "2023.03.21"]
[WhiteClock "0:00:21"]
[BlackClock "0:00:20"]

1. e4 {[%clk 0:03:00]}  c5 {[%clk 0:02:54]} 2. Nf3 {[%clk 0:02:59]}  d6 {[%clk 0:02:50]} 3. d4 {[%clk 0:02:58]}  cxd4 {[%clk 0:02:51]} 4. Nxd4 {[%clk 0:02:56]}  Nf6 {[%clk 0:02:52]} 5. Nc3 {[%clk 0:02:53]}  Nc6 {[%clk 0:02:52]} 6. Be2 {[%clk 0:02:43]}  e5 {[%clk 0:02:50]} 7. Nf3 {[%clk 0:02:43]}  Be7 {[%clk 0:02:47]} 8. h3 {[%clk 0:02:41]}  h6 {[%clk 0:02:43]} 9. O-O {[%clk 0:02:40]}  O-O {[%clk 0:02:42]} 10. Re1 {[%clk 0:02:40]}  a6 {[%clk 0:02:36]} 11. a4 {[%clk 0:02:39]}  Nb4 {[%clk 0:02:32]} 12. Bc4 {[%clk 0:02:16]}  Be6 {[%clk 0:02:24]} 13. Bb3 {[%clk 0:02:15]}  Rc8 {[%clk 0:02:16]} 14. Qe2 {[%clk 0:02:09]}  Qc7 {[%clk 0:02:03]} 15. Rd1 {[%clk 0:02:05]}  Rfd8 {[%clk 0:01:57]} 16. Be3 {[%clk 0:01:57]}  Bc4 {[%clk 0:01:56]} 17. Bxc4 {[%clk 0:01:35]}  Qxc4 {[%clk 0:01:56]} 18. Qxc4 {[%clk 0:01:35]}  Rxc4 {[%clk 0:01:57]} 19. Nd2 {[%clk 0:01:35]}  Rc6 {[%clk 0:01:53]} 20. Rac1 {[%clk 0:01:32]}  d5 {[%clk 0:01:48]} 21. exd5 {[%clk 0:01:31]}  Nfxd5 {[%clk 0:01:49]} 22. Nxd5 {[%clk 0:01:26]}  Rxd5 {[%clk 0:01:47]} 23. c4 {[%clk 0:01:11]}  Rd3 {[%clk 0:01:32]} 24. Nf3 {[%clk 0:01:10]}  f6 {[%clk 0:01:27]} 25. Nh4 {[%clk 0:00:43]}  Kf7 {[%clk 0:01:21]} 26. Rxd3 {[%clk 0:00:28]}  Nxd3 {[%clk 0:01:21]} 27. Rc2 {[%clk 0:00:28]}  Ke6 {[%clk 0:01:09]} 28. g4 {[%clk 0:00:28]}  Bf8 {[%clk 0:00:57]} 29. b3 {[%clk 0:00:26]}  b5 {[%clk 0:00:43]} 30. axb5 {[%clk 0:00:25]}  axb5 {[%clk 0:00:44]} 31. Kg2 {[%clk 0:00:24]}  e4 {[%clk 0:00:41]} 32. Ra2 {[%clk 0:00:22]}  bxc4 {[%clk 0:00:37]} 33. bxc4 {[%clk 0:00:22]}  Rxc4 {[%clk 0:00:36]} 34. Ra6+ {[%clk 0:00:22]}  Kf7 {[%clk 0:00:34]} 35. Ra7+ {[%clk 0:00:22]}  Ke6 {[%clk 0:00:34]} 36. Ra6+ {[%clk 0:00:20]}  Kf7 {[%clk 0:00:20]} 37. Ra7+ {[%clk 0:00:20]}  Ke6 {[%clk 0:00:20]} 38. Ra6+ {[%clk 0:00:21]} 1/2-1/2


[Site "https://www.chess.com"]

[Event "Titled Tuesday Blitz March 21 Early 2023"]
[White "Moussard, Jules"]
[Black "Fromm, Marius"]
[WhiteFideId "642908"]
[BlackFideId "12993190"]
[WhiteElo "2610"]
[BlackElo "2325"]
[Result "1-0"]
[Round "04"]
[TimeControl "180+2"]
[Date "2023.03.21"]
[WhiteClock "0:00:17"]
[BlackClock "0:00:19"]

1. Nf3 {[%clk 0:02:54]}  c5 {[%clk 0:03:00]} 2. e4 {[%clk 0:02:53]}  d6 {[%clk 0:03:00]} 3. d4 {[%clk 0:02:54]}  cxd4 {[%clk 0:03:01]} 4. Nxd4 {[%clk 0:02:54]}  Nf6 {[%clk 0:03:02]} 5. Nc3 {[%clk 0:02:55]}  a6 {[%clk 0:03:02]} 6. Bd3 {[%clk 0:02:54]}  e5 {[%clk 0:03:02]} 7. Nde2 {[%clk 0:02:54]}  Be7 {[%clk 0:03:01]} 8. Ng3 {[%clk 0:02:52]}  O-O {[%clk 0:02:57]} 9. O-O {[%clk 0:02:51]}  Be6 {[%clk 0:02:56]} 10. Nd5 {[%clk 0:02:47]}  Bxd5 {[%clk 0:02:56]} 11. exd5 {[%clk 0:02:48]}  g6 {[%clk 0:02:50]} 12. c4 {[%clk 0:02:47]}  Nbd7 {[%clk 0:02:48]} 13. Bh6 {[%clk 0:02:46]}  Re8 {[%clk 0:02:48]} 14. Re1 {[%clk 0:02:46]}  a5 {[%clk 0:02:44]} 15. b3 {[%clk 0:02:37]}  Nc5 {[%clk 0:02:25]} 16. Bc2 {[%clk 0:02:35]}  Nfd7 {[%clk 0:02:26]} 17. Qd2 {[%clk 0:02:34]}  Bf8 {[%clk 0:02:24]} 18. Bxf8 {[%clk 0:02:13]}  Rxf8 {[%clk 0:02:20]} 19. a3 {[%clk 0:02:09]}  b6 {[%clk 0:02:13]} 20. b4 {[%clk 0:02:07]}  Na6 {[%clk 0:02:12]} 21. Ba4 {[%clk 0:01:59]}  f5 {[%clk 0:02:05]} 22. f4 {[%clk 0:01:38]}  exf4 {[%clk 0:02:00]} 23. Ne2 {[%clk 0:01:31]}  f3 {[%clk 0:01:44]} 24. Nd4 {[%clk 0:01:29]}  Ne5 {[%clk 0:01:44]} 25. Ne6 {[%clk 0:01:12]}  Qh4 {[%clk 0:01:39]} 26. Nxf8 {[%clk 0:00:59]}  Rxf8 {[%clk 0:01:39]} 27. Bb5 {[%clk 0:00:52]}  Nc7 {[%clk 0:01:22]} 28. Rf1 {[%clk 0:00:44]}  fxg2 {[%clk 0:01:17]} 29. Qxg2 {[%clk 0:00:44]}  Nxb5 {[%clk 0:01:15]} 30. cxb5 {[%clk 0:00:44]}  axb4 {[%clk 0:01:15]} 31. axb4 {[%clk 0:00:45]}  Qxb4 {[%clk 0:01:15]} 32. Ra7 {[%clk 0:00:30]}  Qxb5 {[%clk 0:01:07]} 33. h3 {[%clk 0:00:31]}  Rf7 {[%clk 0:01:06]} 34. Ra8+ {[%clk 0:00:31]}  Rf8 {[%clk 0:01:05]} 35. Ra7 {[%clk 0:00:30]}  Rf7 {[%clk 0:01:05]} 36. Ra2 {[%clk 0:00:27]}  Qc5+ {[%clk 0:00:59]} 37. Kh1 {[%clk 0:00:27]}  b5 {[%clk 0:01:00]} 38. Rc2 {[%clk 0:00:28]}  Qd4 {[%clk 0:00:54]} 39. Rd2 {[%clk 0:00:26]}  Qh4 {[%clk 0:00:48]} 40. Rb1 {[%clk 0:00:23]}  f4 {[%clk 0:00:37]} 41. Rd4 {[%clk 0:00:23]}  Qh5 {[%clk 0:00:29]} 42. Rf1 {[%clk 0:00:22]}  f3 {[%clk 0:00:29]} 43. Qg3 {[%clk 0:00:23]}  Qh6 {[%clk 0:00:25]} 44. Rb4 {[%clk 0:00:20]}  Qd2 {[%clk 0:00:25]} 45. Rxb5 {[%clk 0:00:19]}  Qd3 {[%clk 0:00:20]} 46. Rb8+ {[%clk 0:00:19]}  Kg7 {[%clk 0:00:20]} 47. Rbb1 {[%clk 0:00:16]}  Qxd5 {[%clk 0:00:20]} 48. Rbd1 {[%clk 0:00:17]}  f2+ {[%clk 0:00:19]} 49. Rxd5 {[%clk 0:00:17]} 1-0


[Site "https://www.chess.com"]

[Event "Titled Tuesday Blitz March 21 Early 2023"]
[White "Kaufman, Raymond"]
[Black "Ahmadzada, Ahmad"]
[WhiteFideId "2015056"]
[BlackFideId "13413007"]
[WhiteElo "2321"]
[BlackElo "2388"]
[Result "1-0"]
[Round "04"]
[TimeControl "180+2"]
[Date "2023.03.21"]
[WhiteClock "0:00:06"]
[BlackClock "0:00:01"]

1. c4 {[%clk 0:03:00]}  c5 {[%clk 0:02:59]} 2. Nf3 {[%clk 0:02:57]}  Nc6 {[%clk 0:03:00]} 3. Nc3 {[%clk 0:02:56]}  g6 {[%clk 0:02:59]} 4. e3 {[%clk 0:02:54]}  Bg7 {[%clk 0:02:59]} 5. d4 {[%clk 0:02:55]}  d6 {[%clk 0:03:00]} 6. d5 {[%clk 0:02:46]}  Na5 {[%clk 0:02:58]} 7. Be2 {[%clk 0:02:41]}  Nf6 {[%clk 0:02:57]} 8. O-O {[%clk 0:02:40]}  O-O {[%clk 0:02:57]} 9. Bd2 {[%clk 0:02:39]}  e6 {[%clk 0:02:58]} 10. e4 {[%clk 0:02:40]}  exd5 {[%clk 0:02:57]} 11. exd5 {[%clk 0:02:39]}  Bg4 {[%clk 0:02:55]} 12. h3 {[%clk 0:02:38]}  Bxf3 {[%clk 0:02:54]} 13. Bxf3 {[%clk 0:02:39]}  Nxc4 {[%clk 0:02:55]} 14. Bf4 {[%clk 0:02:34]}  Nd7 {[%clk 0:02:46]} 15. Qb3 {[%clk 0:02:32]}  Nce5 {[%clk 0:02:41]} 16. Be2 {[%clk 0:02:29]}  Rb8 {[%clk 0:02:38]} 17. Nb5 {[%clk 0:02:28]}  Qf6 {[%clk 0:02:33]} 18. Qg3 {[%clk 0:02:23]}  a6 {[%clk 0:01:27]} 19. Bg5 {[%clk 0:02:22]}  Qf5 {[%clk 0:01:27]} 20. Nxd6 {[%clk 0:02:21]}  Qc2 {[%clk 0:01:27]} 21. Rfe1 {[%clk 0:02:10]}  f6 {[%clk 0:01:11]} 22. Bf4 {[%clk 0:02:03]}  Qxb2 {[%clk 0:01:06]} 23. Nc4 {[%clk 0:01:52]}  Qb4 {[%clk 0:00:31]} 24. Rab1 {[%clk 0:01:22]}  Qa4 {[%clk 0:00:30]} 25. Bxe5 {[%clk 0:01:12]}  Nxe5 {[%clk 0:00:29]} 26. Nb6 {[%clk 0:00:56]}  Qe8 {[%clk 0:00:09]} 27. f4 {[%clk 0:00:51]}  Nf7 {[%clk 0:00:09]} 28. Bc4 {[%clk 0:00:47]}  Qd8 {[%clk 0:00:08]} 29. d6 {[%clk 0:00:35]}  f5 {[%clk 0:00:09]} 30. d7 {[%clk 0:00:30]}  Bd4+ {[%clk 0:00:09]} 31. Kh1 {[%clk 0:00:29]}  Kg7 {[%clk 0:00:10]} 32. Bxf7 {[%clk 0:00:24]}  Rxf7 {[%clk 0:00:10]} 33. Re8 {[%clk 0:00:24]}  Qc7 {[%clk 0:00:11]} 34. Rc8 {[%clk 0:00:21]}  Qd6 {[%clk 0:00:10]} 35. d8=Q {[%clk 0:00:20]}  Qxd8 {[%clk 0:00:11]} 36. Rxd8 {[%clk 0:00:20]}  Rxd8 {[%clk 0:00:11]} 37. Nc4 {[%clk 0:00:20]}  b5 {[%clk 0:00:08]} 38. Ne5 {[%clk 0:00:20]}  Rc7 {[%clk 0:00:08]} 39. Qg5 {[%clk 0:00:19]}  Re8 {[%clk 0:00:07]} 40. Re1 {[%clk 0:00:17]}  c4 {[%clk 0:00:06]} 41. Rd1 {[%clk 0:00:14]}  Bxe5 {[%clk 0:00:04]} 42. fxe5 {[%clk 0:00:14]}  Rxe5 {[%clk 0:00:05]} 43. Qd8 {[%clk 0:00:13]}  Rce7 {[%clk 0:00:04]} 44. Qd4 {[%clk 0:00:13]}  Kf7 {[%clk 0:00:04]} 45. Kh2 {[%clk 0:00:11]}  R5e6 {[%clk 0:00:03]} 46. Qd5 {[%clk 0:00:10]}  Kg7 {[%clk 0:00:04]} 47. Qd4+ {[%clk 0:00:10]}  Kh6 {[%clk 0:00:03]} 48. Qh8 {[%clk 0:00:10]}  Re3 {[%clk 0:00:02]} 49. Qf8+ {[%clk 0:00:10]}  Kh5 {[%clk 0:00:01]} 50. Rd4 {[%clk 0:00:08]}  R7e4 {[%clk 0:00:01]} 51. Rd7 {[%clk 0:00:06]}  h6 {[%clk 0:00:01]} 52. Qf6 {[%clk 0:00:06]}  Re2 {[%clk 0:00:01]} 53. Rg7 {[%clk 0:00:06]} 1-0


[Site "https://www.chess.com"]

[Event "Titled Tuesday Blitz March 21 Early 2023"]
[White "Schmakel, Sam"]
[Black "Erigaisi Arjun"]
[WhiteFideId "2039311"]
[BlackFideId "35009192"]
[WhiteElo "2356"]
[BlackElo "2737"]
[Result "0-1"]
[Round "04"]
[TimeControl "180+2"]
[Date "2023.03.21"]
[WhiteClock "0:00:02"]
[BlackClock "0:00:33"]

1. d4 {[%clk 0:03:00]}  d6 {[%clk 0:02:59]} 2. e4 {[%clk 0:02:58]}  g6 {[%clk 0:02:59]} 3. Nc3 {[%clk 0:02:58]}  Bg7 {[%clk 0:02:59]} 4. Be3 {[%clk 0:02:54]}  a6 {[%clk 0:02:59]} 5. Qd2 {[%clk 0:02:54]}  b5 {[%clk 0:02:58]} 6. O-O-O {[%clk 0:02:54]}  Nd7 {[%clk 0:02:54]} 7. f3 {[%clk 0:02:51]}  Nb6 {[%clk 0:02:46]} 8. h4 {[%clk 0:02:33]}  b4 {[%clk 0:02:45]} 9. Nb1 {[%clk 0:02:34]}  a5 {[%clk 0:02:37]} 10. h5 {[%clk 0:02:34]}  e6 {[%clk 0:02:27]} 11. g4 {[%clk 0:02:25]}  h6 {[%clk 0:02:11]} 12. hxg6 {[%clk 0:02:21]}  fxg6 {[%clk 0:02:12]} 13. Bd3 {[%clk 0:02:07]}  Kf7 {[%clk 0:02:01]} 14. Ne2 {[%clk 0:01:45]}  c5 {[%clk 0:01:51]} 15. dxc5 {[%clk 0:01:28]}  Na4 {[%clk 0:01:51]} 16. Bd4 {[%clk 0:01:10]}  Bxd4 {[%clk 0:01:43]} 17. Nxd4 {[%clk 0:01:10]}  Qf6 {[%clk 0:01:31]} 18. e5 {[%clk 0:00:46]}  dxe5 {[%clk 0:01:32]} 19. Bb5 {[%clk 0:00:35]}  exd4 {[%clk 0:01:10]} 20. Bxa4 {[%clk 0:00:34]}  e5 {[%clk 0:01:11]} 21. g5 {[%clk 0:00:28]}  hxg5 {[%clk 0:01:08]} 22. Rxh8 {[%clk 0:00:29]}  Qxh8 {[%clk 0:01:08]} 23. Qxg5 {[%clk 0:00:29]}  Qf6 {[%clk 0:00:59]} 24. Bb3+ {[%clk 0:00:24]}  Kg7 {[%clk 0:00:54]} 25. Rg1 {[%clk 0:00:18]}  Qxg5+ {[%clk 0:00:50]} 26. Rxg5 {[%clk 0:00:19]}  Bf5 {[%clk 0:00:50]} 27. Nd2 {[%clk 0:00:11]}  Nf6 {[%clk 0:00:44]} 28. Nc4 {[%clk 0:00:06]}  a4 {[%clk 0:00:45]} 29. Nxe5 {[%clk 0:00:02]}  axb3 {[%clk 0:00:44]} 30. axb3 {[%clk 0:00:03]}  Ra5 {[%clk 0:00:38]} 31. Kd2 {[%clk 0:00:01]}  Rxc5 {[%clk 0:00:37]} 32. Nc4 {[%clk 0:00:02]}  Rc7 {[%clk 0:00:33]} 33. Rg1 {[%clk 0:00:01]}  Nd5 {[%clk 0:00:33]} 34. c3 {[%clk 0:00:02]}  dxc3+ {[%clk 0:00:33]} 0-1


[Site "https://www.chess.com"]

[Event "Titled Tuesday Blitz March 21 Early 2023"]
[White "Firouzja, Alireza"]
[Black "Hernandez Gonzalez, William"]
[WhiteFideId "12573981"]
[BlackFideId "3509915"]
[WhiteElo "2904"]
[BlackElo "2374"]
[Result "0-1"]
[Round "04"]
[TimeControl "180+2"]
[Date "2023.03.21"]
[WhiteClock "0:00:04"]
[BlackClock "0:00:19"]

1. d4 {[%clk 0:03:00]}  Nf6 {[%clk 0:02:56]} 2. c4 {[%clk 0:03:01]}  e6 {[%clk 0:02:56]} 3. g3 {[%clk 0:03:01]}  Bb4+ {[%clk 0:02:55]} 4. Bd2 {[%clk 0:03:01]}  a5 {[%clk 0:02:55]} 5. Bg2 {[%clk 0:03:01]}  O-O {[%clk 0:02:55]} 6. e3 {[%clk 0:03:01]}  d5 {[%clk 0:02:52]} 7. Qc2 {[%clk 0:02:57]}  b6 {[%clk 0:02:49]} 8. cxd5 {[%clk 0:02:52]}  exd5 {[%clk 0:02:48]} 9. Ne2 {[%clk 0:02:52]}  Ba6 {[%clk 0:02:46]} 10. Nbc3 {[%clk 0:02:52]}  Re8 {[%clk 0:02:34]} 11. Nf4 {[%clk 0:02:48]}  c6 {[%clk 0:02:30]} 12. f3 {[%clk 0:02:30]}  Bd6 {[%clk 0:02:12]} 13. Kf2 {[%clk 0:02:29]}  Bxf4 {[%clk 0:02:08]} 14. exf4 {[%clk 0:02:30]}  c5 {[%clk 0:02:04]} 15. dxc5 {[%clk 0:02:21]}  Nc6 {[%clk 0:02:00]} 16. Rhe1 {[%clk 0:01:56]}  Nb4 {[%clk 0:01:54]} 17. Rxe8+ {[%clk 0:01:55]}  Qxe8 {[%clk 0:01:53]} 18. Qa4 {[%clk 0:01:36]}  Qe7 {[%clk 0:01:34]} 19. g4 {[%clk 0:01:09]}  h5 {[%clk 0:01:04]} 20. g5 {[%clk 0:00:56]}  h4 {[%clk 0:00:45]} 21. Bf1 {[%clk 0:00:45]}  Qxc5+ {[%clk 0:00:44]} 22. Kg2 {[%clk 0:00:45]}  Bxf1+ {[%clk 0:00:38]} 23. Rxf1 {[%clk 0:00:46]}  Nh5 {[%clk 0:00:32]} 24. Qd7 {[%clk 0:00:44]}  Qd4 {[%clk 0:00:29]} 25. Bc1 {[%clk 0:00:25]}  Nd3 {[%clk 0:00:27]} 26. Ne2 {[%clk 0:00:18]}  Ndxf4+ {[%clk 0:00:20]} 27. Bxf4 {[%clk 0:00:04]}  Nxf4+ {[%clk 0:00:19]} 0-1


[Site "https://www.chess.com"]